bitfinex/quotes_SOLUSD_20241213
["timestamp","ask_amount","ask_price","bid_price","bid_amount"]
[1734092585613,12.85521694,226.79,226.72,36.63210094]
[1734092586124,12.85521694,226.76,226.7,12.85521694]
[1734092586290,23.87711694,226.82,226.68,23.776884]
[1734092586291,12.85521694,226.73,226.68,23.776884]
[1734092587317,12.85521694,226.74,226.68,23.776884]
[1734092587719,12.85521694,226.75,226.68,36.63210094]
[1734092588615,0.12549,226.77,226.72,12.85521694]
[1734092588910,0.12549,226.77,226.71,12.85521694]
[1734092589923,12.85521694,226.77,226.71,12.85521694]
[1734092590524,12.85521694,226.75,226.68,36.63210094]
[1734092590714,12.85521694,226.74,226.68,23.776884]
[1734092592103,12.85521694,226.74,226.68,36.63210094]
[1734092592620,12.85521694,226.74,226.68,23.776884]
[1734092592798,12.85521694,226.74,226.68,36.63210094]
[1734092593122,12.85521694,226.75,226.7,23.776884]
[1734092593304,12.85521694,226.74,226.68,36.63210094]
[1734092593629,12.85521694,226.74,226.68,23.776884]
[1734092594313,12.85521694,226.73,226.68,23.776884]
[1734092595711,12.85521694,226.72,226.68,23.776884]
[1734092595919,0.12549,226.76,226.61,0.66164652]
[1734092595920,12.85521694,226.69,226.63,12.85521694]
[1734092596119,12.85521694,226.68,226.65,20.0]
[1734092596428,12.85521694,226.66,226.6,7.9205]
[1734092596630,12.85521694,226.64,226.57,12.85521694]
[1734092598114,12.85521694,226.63,226.58,23.776884]
[1734092598557,12.85521694,226.59,226.55,8.143]
[1734092598715,12.85521694,226.58,226.55,1.5935]
[1734092599033,12.85521694,226.59,226.55,1.5935]
[1734092599641,12.85521694,226.6,226.55,1.5935]
[1734092599806,12.85521694,226.6,226.56,23.776884]
[1734092600335,11.0298,226.66,226.56,23.776884]
[1734092600510,11.0298,226.66,226.5,6.0822]
[1734092600511,12.85521694,226.58,226.52,12.85521694]
[1734092600911,12.85521694,226.56,226.5,20.51571694]
[1734092601119,11.0307,226.64,226.5,7.6605]
[1734092601120,12.85521694,226.55,226.5,7.6605]
[1734092601329,12.85521694,226.54,226.5,7.6605]
[1734092601521,20.0,226.61,226.5,12.85521694]
[1734092601738,12.85521694,226.56,226.5,12.85521694]
[1734092601912,12.85521694,226.55,226.49,12.85521694]
[1734092602113,0.12549,226.6,226.51,12.85521694]
[1734092602317,0.12549,226.6,226.53,23.776884]
[1734092602318,12.85521694,226.59,226.53,23.776884]
[1734092602738,12.85521694,226.57,226.53,23.776884]
[1734092602951,12.85521694,226.54,226.5,23.776884]
[1734092603144,12.85521694,226.52,226.46,12.85521694]
[1734092603453,12.85521694,226.52,226.45,14.41741694]
[1734092603811,12.85521694,226.52,226.45,1.5622]
[1734092604038,12.85521694,226.54,226.48,12.85521694]
[1734092604212,12.85521694,226.55,226.48,12.85521694]
[1734092604735,12.85521694,226.55,226.49,23.776884]
[1734092605033,12.85521694,226.59,226.54,23.776884]
[1734092605815,1.5749,226.65,226.55,12.85521694]
[1734092606018,12.85521694,226.61,226.56,23.776884]
[1734092606425,12.85521694,226.6,226.54,23.776884]
[1734092606622,12.85521694,226.58,226.53,23.776884]
[1734092606825,12.85521694,226.58,226.52,23.776884]
[1734092609818,12.85521694,226.57,226.52,23.776884]
[1734092610020,12.85521694,226.53,226.46,12.85521694]
[1734092610219,12.85521694,226.51,226.45,14.41741694]
[1734092610526,12.85521694,226.6,226.45,14.41741694]
[1734092610527,12.85521694,226.49,226.45,1.5622]
[1734092610733,30.0,226.48,226.44,6.4053]
[1734092611939,30.0,226.48,226.45,23.776884]
[1734092612823,30.0,226.48,226.47,36.63210094]
[1734092613025,30.0,226.48,226.47,23.776884]
[1734092613227,12.85521694,226.5,226.45,23.776884]
[1734092613577,12.85521694,226.5,226.44,23.776884]
[1734092613851,12.85521694,226.51,226.44,36.63210094]
[1734092614344,12.85521694,226.51,226.46,23.776884]
[1734092614546,12.85521694,226.52,226.46,12.85521694]
[1734092614839,12.85521694,226.53,226.47,23.776884]
[1734092615025,12.85521694,226.54,226.47,36.63210094]
[1734092617225,11.0343,226.57,226.47,36.63210094]
[1734092617226,12.85521694,226.53,226.47,36.63210094]
[1734092617424,12.85521694,226.54,226.48,12.85521694]
[1734092617627,12.85521694,226.55,226.49,23.776884]
[1734092617820,12.85521694,226.54,226.49,23.776884]
[1734092618544,12.85521694,226.53,226.47,23.776884]
[1734092618931,12.85521694,226.52,226.47,23.776884]
[1734092619124,12.85521694,226.52,226.46,23.776884]
[1734092619843,12.85521694,226.54,226.48,23.776884]
[1734092620566,12.85521694,226.53,226.48,23.776884]
[1734092620856,12.85521694,226.54,226.48,23.776884]
[1734092621455,12.85521694,226.53,226.48,23.776884]
[1734092622442,12.85521694,226.52,226.47,23.776884]
[1734092622827,12.85521694,226.51,226.45,23.776884]
[1734092623338,12.85521694,226.52,226.45,36.63210094]
[1734092624332,12.85521694,226.49,226.4,1.5257]
[1734092624653,12.85521694,226.47,226.4,14.38091694]
[1734092625043,12.85521694,226.48,226.41,12.85521694]
[1734092625637,12.85521694,226.46,226.41,23.776884]
[1734092627462,12.85521694,226.47,226.41,23.776884]
[1734092628659,12.85521694,226.46,226.41,23.776884]
[1734092631333,12.85521694,226.46,226.4,1.5257]
[1734092631637,12.85521694,226.45,226.4,1.5257]
[1734092632042,12.85521694,226.47,226.41,23.776884]
[1734092632239,12.85521694,226.48,226.42,12.85521694]
[1734092635550,12.85521694,226.48,226.41,36.63210094]
[1734092635849,12.85521694,226.47,226.41,23.776884]
[1734092636273,12.85521694,226.46,226.4,14.38091694]
[1734092636450,12.85521694,226.46,226.4,1.5257]
[1734092637272,12.85521694,226.46,226.4,14.38091694]
[1734092638864,12.85521694,226.47,226.4,14.38091694]
[1734092639064,0.12549,226.46,226.4,14.38091694]
[1734092639252,0.12549,226.46,226.4,9.76578301]
[1734092639869,0.12549,226.46,226.4,1.5257]
[1734092640073,0.12549,226.46,226.41,8.24008301]
[1734092640275,0.12549,226.46,226.4,9.76578301]
[1734092640988,0.12549,226.46,226.4,1.5257]
[1734092641367,0.12549,226.46,226.4,9.76578301]
[1734092642486,0.12549,226.4,226.35,1.6117]
[1734092642670,8.24008301,226.39,226.33,8.24008301]
[1734092642856,0.12549,226.38,226.33,8.24008301]
[1734092643061,0.12549,226.38,226.32,14.76638301]
[1734092643264,8.36557301,226.36,226.3,9.85178301]
[1734092643630,8.24008301,226.35,226.3,1.6117]
[1734092643765,8.36557301,226.36,226.3,9.85178301]
[1734092643967,0.12549,226.36,226.3,9.85178301]
[1734092644803,8.24008301,226.38,226.32,8.24008301]
[1734092644981,8.24008301,226.39,226.33,8.24008301]
[1734092645174,0.12549,226.38,226.33,12.88349221]
[1734092646003,13.00898221,226.38,226.31,23.776884]
[1734092646304,12.88349221,226.37,226.31,36.66037621]
[1734092646607,13.00898221,226.38,226.32,12.88349221]
[1734092647112,12.88349221,226.37,226.31,36.66037621]
[1734092647270,12.88349221,226.36,226.31,23.776884]
[1734092647486,12.88349221,226.34,226.3,21.6117]
[1734092647817,12.88349221,226.35,226.3,1.6117]
[1734092648001,11.0418,226.42,226.3,1.6117]
[1734092648002,12.88349221,226.34,226.3,1.6117]
[1734092648182,13.00898221,226.33,226.27,19.40979221]
[1734092648517,13.00898221,226.33,226.27,6.5263]
[1734092648874,12.88349221,226.32,226.27,6.5263]
[1734092649109,13.00898221,226.33,226.27,19.40979221]
[1734092650127,12.88349221,226.34,226.28,23.776884]
[1734092650325,0.12549,226.34,226.28,12.88349221]
[1734092650618,13.00898221,226.34,226.27,19.40979221]
[1734092651089,12.88349221,226.34,226.27,19.40979221]
[1734092651704,12.88349221,226.33,226.27,19.40979221]
[1734092652290,12.88349221,226.33,226.27,6.5263]
[1734092653290,12.88349221,226.33,226.27,19.40979221]
[1734092653490,12.88349221,226.34,226.28,12.88349221]
[1734092654291,12.88349221,226.33,226.27,19.40979221]
[1734092654502,12.88349221,226.3,226.24,14.49519221]
[1734092654683,12.88349221,226.3,226.24,1.6117]
[1734092655190,12.88349221,226.29,226.24,1.6117]
[1734092655398,11.16929,226.37,226.24,1.6117]
[1734092655399,12.88349221,226.3,226.24,1.6117]
[1734092658488,12.88349221,226.31,226.25,12.88349221]
[1734092658995,12.88349221,226.34,226.27,12.88349221]
[1734092660699,12.88349221,226.34,226.28,36.66037621]
[1734092660901,12.88349221,226.37,226.31,12.88349221]
[1734092661687,12.88349221,226.36,226.3,12.88349221]
[1734092662406,12.88349221,226.37,226.31,12.88349221]
[1734092663205,12.88349221,226.38,226.32,12.88349221]
[1734092663399,12.88349221,226.4,226.33,12.88349221]
[1734092664482,12.88349221,226.42,226.35,12.88349221]
[1734092664706,12.88349221,226.43,226.37,12.88349221]
[1734092664985,12.88349221,226.44,226.37,12.88349221]
[1734092665199,8.24181362,226.44,226.37,8.24181362]
[1734092665397,8.24181362,226.44,226.38,23.776884]
[1734092667190,8.24181362,226.45,226.39,8.24181362]
[1734092668690,20.13059331,226.48,226.38,29.981084]
[1734092668691,20.13059331,226.48,226.4,32.01869762]
[1734092668889,28.37240693,226.48,226.41,8.24181362]
[1734092669089,8.24181362,226.47,226.4,32.01869762]
[1734092669892,8.24181362,226.46,226.4,23.776884]
[1734092672321,8.24181362,226.46,226.39,9.82031362]
[1734092673215,8.36730362,226.47,226.4,8.24181362]
[1734092673417,8.24181362,226.48,226.41,32.01869762]
[1734092673832,8.24181362,226.47,226.41,32.01869762]
[1734092673995,8.24181362,226.47,226.4,32.01869762]
[1734092676504,8.24181362,226.46,226.4,23.776884]
[1734092676696,11.037,226.52,226.39,1.5785]
[1734092676893,8.24181362,226.43,226.39,1.5785]
[1734092678525,0.12549,226.48,226.39,1.5785]
[1734092678701,20.12781708,226.51,226.4,8.24181362]
[1734092679021,8.24181362,226.47,226.4,8.24181362]
[1734092679203,8.24181362,226.46,226.4,8.24181362]
[1734092679397,8.24181362,226.46,226.39,9.82031362]
[1734092680910,0.12549,226.5,226.42,8.24181362]
[1734092681142,20.12781708,226.51,226.42,8.24181362]
[1734092681425,8.24181362,226.49,226.42,8.24181362]
[1734092682908,20.12781708,226.51,226.47,8.24181362]
[1734092683112,20.12781708,226.51,226.49,8.24181362]
[1734092683310,20.12781708,226.51,226.47,8.24181362]
[1734092683615,20.12781708,226.51,226.44,23.776884]
[1734092683616,20.12781708,226.51,226.46,8.24181362]
[1734092684836,8.24181362,226.57,226.5,32.01869762]
[1734092685141,8.24181362,226.56,226.5,32.01869762]
[1734092685315,8.24181362,226.56,226.5,23.776884]
[1734092686425,8.24181362,226.57,226.51,8.24181362]
[1734092686633,8.24181362,226.59,226.52,8.24181362]
[1734092687306,8.24181362,226.59,226.47,8.7862809]
[1734092687307,8.24181362,226.58,226.51,8.24181362]
[1734092687511,8.24181362,226.57,226.48,23.776884]
[1734092687810,8.24181362,226.57,226.51,23.776884]
[1734092689226,8.24181362,226.56,226.48,23.776884]
[1734092689530,8.24181362,226.53,226.48,23.776884]
[1734092689832,8.24181362,226.52,226.47,8.124]
[1734092690639,8.24181362,226.53,226.47,16.36581362]
[1734092690802,8.24181362,226.52,226.47,8.124]
[1734092692124,8.24181362,226.53,226.47,16.36581362]
[1734092692514,11.0344,226.57,226.47,16.36581362]
[1734092692734,8.24181362,226.54,226.48,32.01869762]
[1734092693737,8.24181362,226.54,226.48,8.24181362]
[1734092694334,8.24181362,226.53,226.47,16.36581362]
[1734092694641,11.0344,226.57,226.47,16.36581362]
[1734092694844,8.24181362,226.53,226.47,16.36581362]
[1734092695437,22.0643,226.61,226.47,16.36581362]
[1734092695637,8.24181362,226.53,226.47,16.36581362]
[1734092696726,8.24181362,226.52,226.47,8.124]
[1734092696935,8.24181362,226.51,226.47,1.6129]
[1734092697631,8.24181362,226.52,226.47,1.6129]
[1734092697951,8.24181362,226.51,226.44,8.24181362]
[1734092700627,8.24181362,226.52,226.45,8.24181362]
[1734092701251,20.0,226.58,226.42,7.7038]
[1734092701252,8.24181362,226.46,226.42,1.5512]
[1734092701547,8.24181362,226.46,226.37,6.70665452]
[1734092701548,8.24181362,226.43,226.37,7.6069]
[1734092701770,8.24181362,226.4,226.37,1.5626]
[1734092702055,8.24181362,226.4,226.33,8.24181362]
[1734092702230,8.24181362,226.4,226.34,8.24181362]
[1734092702546,8.24181362,226.4,226.33,8.24181362]
[1734092703264,8.24181362,226.4,226.34,8.24181362]
[1734092704543,12.5577,226.47,226.36,8.24181362]
[1734092704756,8.24181362,226.44,226.38,8.24181362]
[1734092705135,8.24181362,226.44,226.37,8.24181362]
[1734092705951,8.24181362,226.43,226.36,8.24181362]
[1734092707345,8.24181362,226.44,226.38,8.24181362]
[1734092709749,8.24181362,226.41,226.36,20.0]
[1734092710057,8.24181362,226.41,226.33,23.776884]
[1734092710058,8.24181362,226.39,226.32,16.25531362]
[1734092710360,8.24181362,226.4,226.34,8.24181362]
[1734092710537,8.24181362,226.41,226.35,8.24181362]
[1734092712740,8.24181362,226.4,226.34,8.24181362]
[1734092714237,8.24181362,226.39,226.33,32.01869762]
[1734092714439,8.24181362,226.35,226.26,8.47395387]
[1734092714644,8.24181362,226.35,226.29,8.24181362]
[1734092714878,16.64709811,226.44,226.27,8.24181362]
[1734092714879,8.24181362,226.33,226.27,8.24181362]
[1734092716058,11.0436,226.38,226.21,7.8113]
[1734092716059,8.24181362,226.31,226.21,7.8113]
[1734092716378,8.24181362,226.29,226.23,8.24181362]
[1734092716557,11.0436,226.38,226.21,7.8113]
[1734092716860,8.24181362,226.32,226.26,8.24181362]
[1734092717248,12.89164915,226.32,226.26,12.89164915]
[1734092719168,12.89164915,226.33,226.27,12.89164915]
[1734092719462,12.89164915,226.35,226.29,12.89164915]
[1734092720483,12.89164915,226.37,226.31,12.89164915]
[1734092720769,12.89164915,226.42,226.36,12.89164915]
[1734092720978,12.89164915,226.41,226.35,12.89164915]
[1734092723060,12.89164915,226.43,226.36,12.89164915]
[1734092723459,12.89164915,226.44,226.37,12.89164915]
[1734092724563,12.89164915,226.43,226.36,12.89164915]
[1734092725270,12.89164915,226.45,226.38,12.89164915]
[1734092725566,12.89164915,226.45,226.33,0.66258482]
[1734092725567,12.89164915,226.46,226.39,12.89164915]
[1734092725742,12.89164915,226.45,226.38,12.89164915]
[1734092725942,12.89164915,226.45,226.32,7.934]
[1734092725943,12.89164915,226.42,226.35,32.89164915]
[1734092729062,12.89164915,226.4,226.34,12.89164915]
[1734092729264,12.89164915,226.39,226.33,36.66853315]
[1734092729768,12.89164915,226.38,226.32,7.934]
[1734092730062,12.89164915,226.36,226.32,7.934]
[1734092731170,12.89164915,226.36,226.29,12.89164915]
[1734092731462,12.89164915,226.35,226.28,12.89164915]
[1734092733869,12.89164915,226.33,226.27,19.24354915]
[1734092734089,12.89164915,226.29,226.27,6.3519]
[1734092734249,12.89164915,226.29,226.22,12.89164915]
[1734092734450,12.89164915,226.28,226.21,14.46944915]
[1734092734649,20.0,226.35,226.25,12.89164915]
[1734092734857,11.0434,226.38,226.26,12.89164915]
[1734092734858,12.89164915,226.33,226.26,12.89164915]
[1734092736474,12.89164915,226.34,226.27,12.89164915]
[1734092736669,12.89164915,226.34,226.28,12.89164915]
[1734092737045,12.89164915,226.37,226.3,12.89164915]
[1734092737358,12.89164915,226.37,226.3,8.24759662]
[1734092737359,8.24759662,226.37,226.3,8.24759662]
[1734092738071,8.24759662,226.37,226.24,0.66283146]
[1734092738256,11.0404,226.44,226.34,8.24759662]
[1734092738577,8.24759662,226.41,226.34,8.24759662]
[1734092740989,8.24759662,226.43,226.33,20.0]
[1734092741278,12.88199584,226.41,226.34,12.88199584]
[1734092741880,12.88199584,226.42,226.35,12.88199584]
[1734092743470,12.88199584,226.41,226.34,12.88199584]
[1734092745768,12.88199584,226.42,226.35,12.88199584]
[1734092746086,12.88199584,226.43,226.36,12.88199584]
[1734092746286,12.88199584,226.41,226.34,12.88199584]
[1734092747152,31.16912238,226.48,226.34,12.88199584]
[1734092747153,20.13062238,226.48,226.38,12.88199584]
[1734092747352,12.88199584,226.45,226.38,12.88199584]
[1734092747584,12.88199584,226.44,226.38,12.88199584]
[1734092747784,20.13062238,226.48,226.36,12.88199584]
[1734092747785,12.88199584,226.43,226.36,12.88199584]
[1734092748356,12.88199584,226.44,226.37,12.88199584]
[1734092751559,12.88199584,226.45,226.38,12.88199584]
[1734092751764,12.88199584,226.45,226.39,12.88199584]
[1734092752685,11.0375,226.5,226.41,12.88199584]
[1734092752908,12.88199584,226.48,226.41,12.88199584]
[1734092753066,20.1263456,226.53,226.45,12.88199584]
[1734092753265,33.00834144,226.53,226.46,12.88199584]
[1734092754375,12.88199584,226.52,226.45,12.88199584]
[1734092757087,20.1263456,226.53,226.47,12.88199584]
[1734092758470,12.88199584,226.54,226.48,12.88199584]
[1734092759385,12.88199584,226.55,226.48,12.88199584]
[1734092763187,8.23443878,226.55,226.48,8.23443878]
[1734092764988,8.23443878,226.55,226.47,8.23443878]
[1734092765512,11.0338,226.58,226.47,8.23443878]
[1734092765513,8.23443878,226.54,226.47,8.23443878]
[1734092765877,8.23443878,226.55,226.47,8.23443878]
[1734092766383,8.23443878,226.58,226.5,8.23443878]
[1734092766775,8.23443878,226.57,226.5,8.23443878]
[1734092769071,8.23443878,226.56,226.49,8.23443878]
[1734092769379,8.23443878,226.54,226.47,8.23443878]
[1734092770994,8.23443878,226.55,226.48,8.23443878]
[1734092771599,8.23443878,226.56,226.49,8.23443878]
[1734092773286,8.23443878,226.55,226.48,8.23443878]
[1734092773486,8.23443878,226.56,226.49,8.23443878]
[1734092778699,8.23443878,226.57,226.5,8.23443878]
[1734092780387,20.11910909,226.62,226.51,23.776884]
[1734092780586,8.23443878,226.59,226.52,8.23443878]
[1734092781391,8.23443878,226.58,226.51,32.01132278]
[1734092781590,8.23443878,226.56,226.5,8.0575]
[1734092781785,8.23443878,226.53,226.46,23.776884]
[1734092781982,8.23443878,226.51,226.45,7.5545]
[1734092782199,8.23443878,226.5,226.45,7.5545]
[1734092784300,8.23443878,226.48,226.4,7.6885]
[1734092784603,8.23443878,226.47,226.4,15.92293878]
[1734092785306,8.23443878,226.48,226.41,8.23443878]
[1734092786287,0.12549,226.53,226.41,8.23443878]
[1734092786485,8.23443878,226.48,226.41,8.23443878]
[1734092787708,8.23443878,226.48,226.42,8.23443878]
[1734092787909,11.16189,226.53,226.46,8.23443878]
[1734092787910,8.23443878,226.53,226.46,8.23443878]
[1734092788500,8.23443878,226.52,226.46,8.23443878]
[1734092790701,11.0346,226.56,226.48,8.23443878]
[1734092790905,8.23443878,226.54,226.48,8.23443878]
[1734092791100,8.23443878,226.57,226.5,8.23443878]
[1734092791309,8.23443878,226.57,226.51,8.23443878]
[1734092791492,11.0331,226.6,226.51,8.23443878]
[1734092791493,8.23443878,226.58,226.51,8.23443878]
[1734092792526,8.23443878,226.57,226.51,8.23443878]
[1734092794726,8.23443878,226.58,226.51,8.23443878]
[1734092795209,20.11910909,226.62,226.51,8.23443878]
[1734092795409,3.83901356,226.71,226.57,8.23443878]
[1734092795618,8.23443878,226.63,226.56,8.23443878]
[1734092796220,8.23443878,226.62,226.55,8.23443878]
[1734092796420,8.23443878,226.61,226.54,8.23443878]
[1734092796607,8.23443878,226.6,226.53,8.23443878]
[1734092797304,8.23443878,226.62,226.55,8.23443878]
[1734092798221,8.23443878,226.6,226.51,20.0]
[1734092798527,31.0308,226.64,226.54,8.23443878]
[1734092798528,8.23443878,226.61,226.54,8.23443878]
[1734092799234,8.23443878,226.62,226.55,8.23443878]
[1734092799407,2.64415351,226.7,226.57,8.23443878]
[1734092799602,8.23443878,226.65,226.58,8.23443878]
[1734092799802,8.23443878,226.66,226.59,8.23443878]
[1734092800835,8.23443878,226.67,226.6,8.23443878]
[1734092802224,8.23443878,226.66,226.55,31.576684]
[1734092802446,8.23443878,226.63,226.56,8.23443878]
[1734092804641,8.23443878,226.63,226.57,8.23443878]
[1734092804843,8.23443878,226.64,226.57,8.23443878]
[1734092805558,11.0299,226.66,226.56,8.23443878]
[1734092805559,8.23443878,226.63,226.56,8.23443878]
[1734092805930,8.23443878,226.62,226.55,16.03423878]
[1734092806250,8.23443878,226.63,226.56,8.23443878]
[1734092806651,8.23443878,226.64,226.57,8.23443878]
[1734092807649,8.23443878,226.65,226.58,8.23443878]
[1734092807846,8.23443878,226.67,226.6,8.23443878]
[1734092808745,8.23443878,226.66,226.59,8.23443878]
[1734092810630,8.23443878,226.65,226.58,8.23443878]
[1734092811138,8.23443878,226.62,226.55,16.03423878]
[1734092811451,8.23443878,226.61,226.55,7.7998]
[1734092812834,8.23443878,226.59,226.55,7.7998]
[1734092813034,8.23443878,226.6,226.55,7.7998]
[1734092816661,8.23443878,226.59,226.55,7.7998]
[1734092817231,8.23443878,226.58,226.55,1.6386]
[1734092818545,8.23443878,226.58,226.51,8.23443878]
[1734092819370,8.23443878,226.59,226.52,8.23443878]
[1734092820141,8.23443878,226.58,226.51,8.23443878]
[1734092820972,31.14646953,226.64,226.55,8.23443878]
[1734092821185,8.23443878,226.62,226.55,8.23443878]
[1734092821767,8.23443878,226.63,226.56,8.23443878]
[1734092823756,31.14646953,226.64,226.56,8.23443878]
[1734092823961,28.35020831,226.64,226.57,8.23443878]
[1734092824649,20.11576953,226.64,226.61,8.23443878]
[1734092824843,8.23443878,226.68,226.61,8.23443878]
[1734092825039,8.23443878,226.68,226.62,8.23443878]
[1734092825444,8.23443878,226.69,226.62,8.23443878]
[1734092826368,8.23443878,226.68,226.61,8.23443878]
[1734092827064,8.23443878,226.67,226.6,1.5582]
[1734092827366,8.23443878,226.67,226.6,9.79263878]
[1734092828071,8.23443878,226.62,226.59,6.2593]
[1734092828253,8.23443878,226.61,226.55,1.6511]
[1734092828452,8.23443878,226.6,226.55,1.6511]
[1734092829248,23.776884,226.65,226.55,9.88553878]
[1734092829471,8.23443878,226.61,226.55,9.88553878]
[1734092829867,0.12549,226.72,226.59,8.23443878]
[1734092830070,0.12549,226.72,226.58,20.0]
[1734092830071,8.23443878,226.68,226.61,8.23443878]
[1734092830259,8.23443878,226.68,226.58,0.66188665]
[1734092830260,8.23443878,226.67,226.6,8.23443878]
[1734092830851,8.23443878,226.66,226.6,8.23443878]
[1734092831058,8.23443878,226.65,226.59,8.23443878]
[1734092831364,8.23443878,226.66,226.6,8.23443878]
[1734092832661,8.23443878,226.65,226.59,8.23443878]
[1734092833283,12.85455715,226.65,226.59,12.85455715]
[1734092833667,12.85455715,226.65,226.58,12.85455715]
[1734092833870,12.85455715,226.64,226.57,32.85455715]
[1734092835124,12.85455715,226.62,226.55,14.50565715]
[1734092835266,12.85455715,226.6,226.55,1.6511]
[1734092835462,12.85455715,226.59,226.55,1.6511]
[1734092836692,12.85455715,226.6,226.55,1.6511]
[1734092837965,23.776884,226.64,226.55,14.50565715]
[1734092838166,12.85455715,226.61,226.55,14.50565715]
[1734092839384,30.0,226.57,226.55,14.50565715]
[1734092840403,30.0,226.57,226.55,1.6511]
[1734092842192,30.0,226.57,226.51,12.85455715]
[1734092842891,12.85455715,226.58,226.51,12.85455715]
[1734092843684,23.776884,226.62,226.51,12.85455715]
[1734092843901,12.85455715,226.58,226.51,12.85455715]
[1734092845480,30.0,226.56,226.51,12.85455715]
[1734092847448,42.85455715,226.56,226.5,1.6214]
[1734092848131,12.85455715,226.55,226.49,6.2844]
[1734092848333,12.85455715,226.51,226.44,1.501]
[1734092848635,12.85455715,226.51,226.44,14.35555715]
[1734092849009,12.85455715,226.52,226.45,12.85455715]
[1734092849216,30.0,226.5,226.47,12.85455715]
[1734092851036,30.0,226.5,226.44,2.16329939]
[1734092851236,30.0,226.5,226.47,12.85455715]
[1734092851449,30.0,226.5,226.46,12.85455715]
[1734092851646,30.0,226.5,226.45,12.85455715]
[1734092852161,12.85455715,226.49,226.44,1.501]
[1734092852457,30.0,226.48,226.44,1.501]
[1734092853550,30.0,226.48,226.44,9.73943557]
[1734092853747,8.23843557,226.5,226.44,9.73943557]
[1734092854466,8.23843557,226.49,226.44,1.501]
[1734092855564,8.23843557,226.5,226.44,1.501]
[1734092855940,8.23843557,226.51,226.44,9.73943557]
[1734092856353,8.23843557,226.5,226.44,1.501]
[1734092860669,8.23843557,226.51,226.44,9.73943557]
[1734092861563,11.0336,226.58,226.45,8.23843557]
[1734092861766,8.23843557,226.52,226.45,8.23843557]
[1734092861951,8.23843557,226.51,226.44,9.73943557]
[1734092864057,23.902374,226.57,226.44,9.73943557]
[1734092864254,8.23843557,226.51,226.44,9.73943557]
[1734092865465,23.902374,226.57,226.44,1.501]
[1734092865658,8.23843557,226.51,226.44,9.73943557]
[1734092868149,8.23843557,226.5,226.44,9.73943557]
[1734092869072,8.23843557,226.45,226.36,7.8214]
[1734092869385,8.23843557,226.45,226.39,8.23843557]
[1734092871568,8.23843557,226.45,226.37,8.23843557]
[1734092871790,23.776884,226.48,226.37,8.23843557]
[1734092871959,8.23843557,226.44,226.37,8.23843557]
[1734092872754,8.23843557,226.45,226.38,8.23843557]
[1734092873178,8.23843557,226.44,226.38,8.23843557]
[1734092873384,8.23843557,226.43,226.36,7.8214]
[1734092873597,8.23843557,226.42,226.36,7.8214]
[1734092874459,8.23843557,226.43,226.36,16.05983557]
[1734092875476,8.23843557,226.43,226.37,8.23843557]
[1734092875672,23.776884,226.48,226.4,8.23843557]
[1734092875870,8.23843557,226.47,226.4,8.23843557]
[1734092878096,8.23843557,226.46,226.39,8.23843557]
[1734092879917,11.0375,226.51,226.41,8.23843557]
[1734092880120,11.0375,226.51,226.42,8.23843557]
[1734092880347,8.23843557,226.48,226.42,8.23843557]
[1734092880845,8.23843557,226.48,226.41,8.23843557]
[1734092881403,8.23843557,226.48,226.42,8.23843557]
[1734092881614,8.23843557,226.51,226.45,8.23843557]
[1734092881937,8.23843557,226.53,226.46,8.23843557]
[1734092882503,8.23843557,226.52,226.46,8.23843557]
[1734092882706,8.23843557,226.52,226.45,8.23843557]
[1734092885814,23.776884,226.57,226.47,8.23843557]
[1734092886014,8.23843557,226.53,226.46,8.23843557]
[1734092886447,8.23843557,226.52,226.45,8.23843557]
[1734092887134,8.23843557,226.53,226.47,8.23843557]
[1734092887632,20.12101457,226.58,226.5,8.23843557]
[1734092887843,8.23843557,226.56,226.5,8.23843557]
[1734092888822,8.23843557,226.56,226.49,8.23843557]
[1734092889655,8.23843557,226.55,226.49,8.23843557]
[1734092890750,8.23843557,226.55,226.48,8.23843557]
[1734092891477,8.23843557,226.54,226.47,28.23843557]
[1734092892052,8.23843557,226.55,226.48,8.23843557]
[1734092895764,8.23843557,226.53,226.46,8.23843557]
[1734092902249,20.12101457,226.58,226.49,8.23843557]
[1734092902453,8.23843557,226.55,226.49,8.23843557]
[1734092903931,8.23843557,226.55,226.47,20.0]
[1734092904151,8.23843557,226.57,226.5,8.23843557]
[1734092904348,28.35945014,226.58,226.51,8.23843557]
[1734092904546,28.35945014,226.58,226.52,8.23843557]
[1734092905344,28.35945014,226.58,226.48,0.66216754]
[1734092905635,20.12101457,226.58,226.49,28.23843557]
[1734092905850,8.23843557,226.56,226.49,28.23843557]
[1734092907440,8.23843557,226.57,226.5,8.23843557]
[1734092908757,20.12101457,226.58,226.53,8.23843557]
[1734092908957,8.23843557,226.6,226.53,8.23843557]
[1734092909152,8.23843557,226.59,226.52,8.23843557]
[1734092910664,8.23843557,226.6,226.53,8.23843557]